Cogmind - Beta 17 @@@ ROGUE MODE // 2026.06.29 @ 16:23:02 Player: THN-L0C Result: Destroyed by D-63 Destroyer via exploding Fusion Modulator Performance ------------- Evolutions (6) 3000 Regions Visited (25) 5000 Robots Destroyed (203) 1015 Value Destroyed (11343) 11343 Prototype IDs (36) 720 Alien Tech Used (0) 0 Bonus (11415) 11415 TOTAL SCORE: 32493 Bonus ------- High Alert Combat Kills 1652 Follower Combat Kills 3028 Hunted by Unchained 500 Entered Garrisons 1400 Used RIF Installer 4500 Aligned with FarCom 300 Met Zhirov 300 Friendly Fire -265 Cogmind --------- Core Integrity 0/1150 Matter 160/300 Energy 98/100 System Corruption 4% Temperature Cool (12) Movement Core (50) Location -4/Factory Parts ------- > --- POWER (2) -------- (None) > --- PROPULSION (4) --- (None) > --- UTILITY (8) ------ (None) > --- WEAPON (5) ------- (None) > --- INVENTORY (5) ---- High-capacity Storage Unit Advanced Weapon Cycler Cloak of Protection Advanced Hacking Suite Relay Coupler [NC] (30) Peak State ------------ > --- POWER ------------ Reinforced Fission Core Reinforced Quantum Reactor > --- PROPULSION ------- Heavy Treads Heavy Treads > --- UTILITY ---------- Huge Storage Unit Visual Processing Unit Active Sensor Suite Advanced Targeting Computer Improved Target Analyzer Armor Integrity Analyzer > --- WEAPON ----------- Enhanced Nova Cannon Railgun Heavy Linear Accelerator Improved Remote Datajack > --- INVENTORY -------- Antimatter Reactor Antimatter Reactor Light Antimatter Reactor Improved Medium Treads Improved Medium Treads Improved Medium Treads Advanced Heat Sink Improved Coolant Injector Improved Kinecellerator Advanced Weapon Cycler Improved Transmission Jammer Cloak of Protection Layered Heavy Armor Plating Improved Powered Armor Graphene Brace Advanced Remote Force Field Advanced Hacking Suite Relay Coupler [Duelist] Improved Dynamic Insulation System High-powered Tractor Beam HERF Cannon KE Penetrator KE Penetrator Heavy Rocket Launcher [Rating: 133] Favorites ----------- Power Reinforced Fission Core Engine Improved Deuterium Engine Power Core Reinforced Fission Core Reactor Quantum Reactor Propulsion Improved Medium Treads Treads Improved Medium Treads Leg Aluminum Leg Wheel Armored Huge Wheel Hover Unit Gravmag System Flight Unit Improved Flight Unit Utility Huge Storage Unit Device Transmission Jammer Storage Huge Storage Unit Processor Armor Integrity Analyzer Hackware System Shield Protection Improved Medium Armor Plating Weapon Hypervelocity Gauss Rifle Energy Gun Precision Beam Rifle Energy Cannon Matter Neutralizer Ballistic Gun Hypervelocity Gauss Rifle Ballistic Cannon Heavy Mass Driver Launcher Heavy Missile Launcher Special Weapon Remote Datajack Impact Weapon Powered Hammer Slashing Weapon Scythe Build | -11 -10 -10 -10 -9 -8 -8 -8 -8 -7 -7 -7 -7 -6 -6 -6 -6 -5 -5 -5 -5 -5 -5 -4 -4 -4 ------- Run | Yrd Mat Min Exi Min Mat Gar Mat Gar Fac Gar Fac Gar Fac Was Fac Gar Fac Ext Cet Arc Hub Gar Fac Gar Fac Slots Evolved 12 | . . . . . 4 . . . 2 . . . 2 . . . 2 . . . . . 2 . . Power 1 | . . . . . . . . . . . . . 1 . . . . . . . . . . . . Propulsion 2 | . . . . . 2 . . . . . . . . . . . . . . . . . . . . Utility 6 | . . . . . 2 . . . 1 . . . . . . . 2 . . . . . 1 . . Weapon 3 | . . . . . . . . . 1 . . . 1 . . . . . . . . . 1 . . Parts Attached 276 | 10 7 . . 2 7 2 2 18 21 15 4 28 2 . 17 18 11 29 10 . 2 23 11 27 10 Power 41 | 2 . . . . 1 1 . 5 1 3 . 4 1 . 2 2 2 6 1 . . 3 2 3 2 Engine 13 | 2 . . . . 1 . . 1 1 . . 2 . . 1 2 . 2 . . . 1 . . . Core 19 | . . . . . . 1 . 4 . 3 . 1 1 . 1 . 2 4 . . . 2 . . . Reactor 9 | . . . . . . . . . . . . 1 . . . . . . 1 . . . 2 3 2 Propulsion 48 | 3 3 . . . 1 . . 5 4 5 . 6 . . 4 . 2 4 3 . . 3 1 4 . Treads 23 | . . . . . . . . . . . . 2 . . 4 . 2 4 3 . . 3 1 4 . Leg 2 | 2 . . . . . . . . . . . . . . . . . . . . . . . . . Wheel 5 | 1 . . . . . . . . 1 . . 3 . . . . . . . . . . . . . Hover 12 | . . . . . . . . 3 3 5 . 1 . . . . . . . . . . . . . Flight 6 | . 3 . . . 1 . . 2 . . . . . . . . . . . . . . . . . Utility 115 | 2 1 . . . 3 1 . 7 12 6 3 8 1 . 4 10 6 12 4 . 1 14 4 12 4 Device 46 | 1 1 . . . 2 . . 4 7 3 . . . . . 1 2 4 3 . . 9 1 5 3 Storage 5 | 1 . . . . . . . . 2 . 1 . . . 1 . . . . . . . . . . Processor 8 | . . . . . . . . . . . . 1 . . 1 . . 2 . . . 2 . 2 . Hackware 35 | . . . . . . 1 . 3 3 1 1 4 1 . 2 6 2 1 . . . 2 3 5 . Protection 21 | . . . . . 1 . . . . 2 1 3 . . . 3 2 5 1 . 1 1 . . 1 Artifact . | . . . . . . . . . . . . . . . . . . . . . . . . . . Weapon 72 | 3 3 . . 2 2 . 2 1 4 1 1 10 . . 7 6 1 7 2 . 1 3 4 8 4 Energy Gun 14 | 3 2 . . . 1 . 2 . 2 1 . 1 . . 1 . . . . . . . 1 . . Energy Cannon 6 | . . . . . . . . . . . . . . . . . . 2 . . . 1 . 3 . Ballistic Gun 27 | . . . . . . . . . . . . 5 . . 3 4 . 4 2 . 1 1 . 3 4 Ballistic Cannon 5 | . 1 . . . . . . . . . . . . . . . . 1 . . . . 2 1 . Launcher 6 | . . . . . . . . 1 . . . 2 . . 2 1 . . . . . . . . . Special Weapon 10 | . . . . 2 . . . . 1 . 1 1 . . 1 1 . . . . . 1 1 1 . Impact Weapon 2 | . . . . . . . . . 1 . . . . . . . 1 . . . . . . . . Slashing Weapon 2 | . . . . . 1 . . . . . . 1 . . . . . . . . . . . . . Piercing Weapon . | . . . . . . . . . . . . . . . . . . . . . . . . . . Special Melee Weapon . | . . . . . . . . . . . . . . . . . . . . . . . . . . Unidentified Prototypes 13 | . 2 . . . 1 . 2 . 2 . . . . . 1 . 2 . 2 . . . . 1 . Corrupted Parts 1 | . . . . . . . . . . . . 1 . . . . . . . . . . . . . System Corruption 10 | . . . . . . . . . . . . 10 . . . . . . . . . . . . . Parts Lost 67 | . . . . . . . . 4 . 3 . 15 . . 4 . 3 . 4 . . 3 7 3 21 Power 9 | . . . . . . . . 2 . . . 3 . . 1 . . . . . . . 1 . 2 Propulsion 22 | . . . . . . . . . . 1 . 7 . . 2 . 2 . 2 . . . 1 2 5 Utility 16 | . . . . . . . . 2 . 1 . 2 . . 1 . 1 . 1 . . 1 1 1 5 Weapon 20 | . . . . . . . . . . 1 . 3 . . . . . . 1 . . 2 4 . 9 Highest Loss Streak 21 | . . . . . . . . 2 . 1 . 6 . . 2 . 3 . 3 . . 3 3 1 21 To Critical Strikes . | . . . . . . . . . . . . . . . . . . . . . . . . . . Average Backups 18 | 4 7 8 8 7 7 8 8 7 8 9 10 17 19 18 22 24 23 24 22 23 23 22 20 23 23 Power 1 | . . . . . . 1 1 1 1 1 1 . . . . . 1 1 1 1 1 1 1 3 2 Propulsion 1 | 1 2 3 3 2 . . . . . 1 2 . . . 2 1 . 1 2 4 4 2 2 2 2 Utility 10 | . 2 4 4 3 4 4 4 3 4 4 3 12 14 14 15 14 12 12 10 11 11 12 12 12 12 Weapon 4 | 1 2 1 1 1 2 2 2 2 3 2 3 4 4 4 3 6 7 7 7 6 6 4 3 4 4 Tool/Special . | . . . . . . . . . . . . . . . . . . . . . . . . . . Unused Backups 75 | . 4 . 2 2 2 1 1 . 5 1 1 19 . . 4 6 . 2 . . . 3 2 12 8 Power 10 | . . . . . . 1 . . 2 1 . . . . . . . . . . . . . 6 . Propulsion 3 | . . . . 1 . . . . . . . 1 . . 1 . . . . . . . . . . Utility 43 | . 1 . 2 1 2 . 1 . 2 . 1 14 . . 1 4 . 2 . . . 1 1 4 6 Weapon 18 | . 3 . . . . . . . 1 . . 4 . . 2 2 . . . . . 1 1 2 2 Tool/Special 1 | . . . . . . . . . . . . . . . . . . . . . . 1 . . . Average Slot Usage (%) 92 | . 100 100 100 100 98 100 98 98 99 99 100 76 83 86 86 99 97 99 93 88 87 92 87 85 78 Engine 2 | . 14 14 14 14 9 8 . . 6 2 . 1 . . 3 10 4 1 . . . . . . . Core 4 | . . . . . . . 9 8 . 4 7 1 5 6 3 2 6 9 6 5 5 5 5 3 . Reactor 2 | . . . . . . . . . . . . 2 6 6 4 . . . 3 5 5 5 4 6 9 Treads 10 | . . . . . . . . . . . . 1 . . 4 25 23 23 16 11 11 15 15 11 9 Wheel 1 | . . . . . . . . . 3 . . 9 13 13 10 . . . . . . . . . . Hover 3 | . . . . . . . . 8 25 30 30 3 . . . . . . . . . . . . . Flight 4 | . 7 28 28 28 35 36 36 27 . . . . . . . . . . . . . . . . . Device 9 | . 14 14 14 14 20 18 10 12 20 15 9 3 . . 3 3 12 11 17 23 22 11 7 7 9 Storage 6 | . 14 14 14 14 9 9 9 9 7 7 7 7 6 6 6 6 5 5 5 5 5 5 5 5 4 Processor 5 | . . . . . . . . . . . . . . . . . . 1 5 5 5 16 15 17 20 Hackware 11 | . . . . . . 3 9 8 6 11 12 20 20 20 19 22 14 15 4 . . . 10 8 4 Protection 3 | . . . . . 4 5 6 5 3 3 7 4 6 6 1 . 4 4 4 5 4 4 1 . . Energy Gun 2 | . 27 28 28 21 9 7 1 5 7 6 7 1 . . 2 . . . . . . . 2 . . Energy Cannon 1 | . . . . . . . . . . . . . . . . . . . . . . 3 3 5 4 Ballistic Gun 9 | . . . . . . . . . . . . 6 13 13 14 17 17 20 22 23 21 17 6 4 6 Special Weapon 2 | . . . . 6 3 1 7 3 6 4 7 4 6 6 2 2 . 1 . . . . 2 5 3 Impact Weapon 2 | . . . . . . . . . 1 7 7 4 4 6 4 4 4 . . . . . . . . Slashing Weapon 1 | . . . . . 5 8 9 8 5 . . . . . . . . . . . . . . . . Peak Build Rating 133 | 7 17 17 18 20 38 38 36 44 51 53 53 63 71 71 72 81 99 103 113 113 114 119 120 133 129 Average Rating 79 | 5 10 16 17 18 35 36 35 36 46 51 52 48 69 69 69 73 92 99 109 113 112 113 110 118 117 On Entrance 62 | . 7 17 17 18 20 37 35 36 44 49 53 53 63 69 71 70 80 95 103 113 113 113 113 113 127 Avg Prop Armor Cover (%) 5 | 9 9 . . . 2 . . 2 4 . . 10 . . . . . . . . . . . . . Naked Turns 24 | . . . . . . . . . . . . . . . . . . . . . . . . . 24 Heaviest Build 201 | 13 17 14 14 14 26 21 18 26 35 37 62 76 84 84 127 127 146 152 162 162 162 165 164 201 201 Greatest Support 160 | 10 20 16 16 16 26 26 20 27 45 36 40 56 56 56 120 120 120 120 150 150 150 160 137 140 140 Greatest Overweight (x) 15 | 1 2 . . 1 . 1 . 2 1 1 1 15 1 1 3 1 1 1 1 1 1 1 1 1 1 Average Overweight (x) . | . . . . . . . . . . . . 1 1 1 1 . 1 1 1 1 . . 1 1 . Largest Inventory Capacity 25 | 8 8 8 8 8 8 8 8 8 10 10 20 20 20 20 25 25 25 25 25 25 25 25 25 25 25 Average Capacity 20 | 7 8 8 8 8 8 8 8 8 8 10 12 20 20 20 24 25 25 25 25 25 25 25 25 25 24 Most Carried 25 | 7 8 8 8 8 8 8 8 8 10 10 12 20 20 20 25 25 25 25 25 24 25 25 25 25 25 Average Carried 19 | 4 7 8 7 7 7 8 7 7 8 9 10 17 18 18 22 24 23 24 24 24 24 24 22 24 23 Final Capacity 25 | 8 8 8 8 8 8 8 8 8 10 10 20 20 20 20 25 25 25 25 25 25 25 25 25 25 5 Final Carried 25 | 7 8 8 8 8 8 8 8 8 10 10 12 20 18 20 21 25 22 25 24 24 25 25 25 25 5 Class Distribution -------------------- 23% | Scavenger-Gunner 11% | Bothacker-Skirmisher 8% | Mutant 8% | Scavenger-Mutant 8% | Botlord-Skirmisher 6% | Sprinter 5% | Commander-Skirmisher 3% | Bothacker-Gunner 3% | Scavenger-Tank 3% | Commander-Gunner 3% | Botlord-Mutant 3% | Hacker-Mutant Dominant Class ---------------- Mutant | -10/Materials Mutant | -10/Mines Mutant | -10/Exiles Mutant | -9/Mines Sprinter | -8/Materials Sprinter | -8/Garrison Commander-Sprinter | -8/Materials Sprinter | -8/Garrison Mutant | -7/Factory Scavenger-Mutant | -7/Garrison Scavenger-Mutant | -7/Factory Botlord-Mutant | -7/Garrison Botlord-Skirmisher | -6/Factory Botlord-Skirmisher | -6/Waste Botlord-Skirmisher | -6/Factory Bothacker-Skirmisher | -6/Garrison Bothacker-Skirmisher | -5/Factory Commander-Skirmisher | -5/Extension Scavenger-Tank | -5/Cetus Scavenger-Tank | -5/Archives Scavenger-Tank | -5/Hub_04(d) Scavenger-Gunner | -5/Garrison Scavenger-Gunner | -4/Factory Scavenger-Gunner | -4/Garrison Scavenger-Gunner | -4/Factory Resources | -11 -10 -10 -10 -9 -8 -8 -8 -8 -7 -7 -7 -7 -6 -6 -6 -6 -5 -5 -5 -5 -5 -5 -4 -4 -4 ----------- Run | Yrd Mat Min Exi Min Mat Gar Mat Gar Fac Gar Fac Gar Fac Was Fac Gar Fac Ext Cet Arc Hub Gar Fac Gar Fac Matter Collected 9866 | 384 136 . 40 60 235 150 100 460 166 606 . 794 . . 322 985 280 1321 309 . 247 1455 616 737 463 Remotely 1516 | . . . . . . . . . . . . . . . . . . 10 . . . 811 252 . 443 Salvage Created 9823 | 203 359 . . . 60 100 . 1084 120 362 . 1056 . . 468 463 210 1302 378 . 247 1182 799 699 731 Parts 458 | 15 28 . . . 1 7 . 40 8 10 . 43 . . 32 41 5 48 14 . 13 69 32 28 24 Haulers Intercepted 2 | . 2 . . . . . . . . . . . . . . . . . . . . . . . . Recyclers Shooed 3 | . 2 . . . . . . . . . . . . . . . . . . . 1 . . . . Parts Field Recycled . | . . . . . . . . . . . . . . . . . . . . . . . . . . Retrieved Matter . | . . . . . . . . . . . . . . . . . . . . . . . . . . Parts Self-Destructed . | . . . . . . . . . . . . . . . . . . . . . . . . . . Prevented . | . . . . . . . . . . . . . . . . . . . . . . . . . . Parts Restored . | . . . . . . . . . . . . . . . . . . . . . . . . . . Kills | -11 -10 -10 -10 -9 -8 -8 -8 -8 -7 -7 -7 -7 -6 -6 -6 -6 -5 -5 -5 -5 -5 -5 -4 -4 -4 ------- Run | Yrd Mat Min Exi Min Mat Gar Mat Gar Fac Gar Fac Gar Fac Was Fac Gar Fac Ext Cet Arc Hub Gar Fac Gar Fac Combat Hostiles Destroyed 168 | . 10 . . . 1 1 . 20 3 9 . 19 . . 11 11 2 13 6 . 3 23 15 9 12 Melee 20 | . . . . . . . . 8 2 4 . 5 . . . 1 . . . . . . . . . Guns 87 | . 10 . . . . 1 . 5 1 . . 5 . . 5 5 2 13 6 . 3 21 4 . 6 Cannons 19 | . . . . . . . . . . . . . . . . . . . . . . 2 8 6 3 AOE 33 | . . . . . . . . 7 . 3 . 6 . . 6 5 . . . . . . 3 . 3 Classes Destroyed 20 | 3 3 . . . 1 2 . 3 . . . 1 . . . . 1 . . . . 4 . . 2 Worker 9 | 1 1 . . . . . . . . . . . . . 4 . . 2 . . . . . . 1 Builder 3 | . . . . . . . . . . . . . . . . . 2 1 . . . . . . . Tunneler 5 | 5 . . . . . . . . . . . . . . . . . . . . . . . . . Hauler 2 | . 2 . . . . . . . . . . . . . . . . . . . . . . . . Recycler 5 | 1 1 . . . . . . . . . . . . . . . . 2 . . . . 1 . . Mechanic 1 | . . . . . . . . . . . . . . . . . . . . . . . . . 1 Watcher 6 | . . . . . . 2 . . . . . 1 . . 1 . 1 . . . 1 . . . . Swarmer 54 | . 9 . . . . . . . 1 6 . 6 . . 7 6 . 3 . . . 12 4 . . Cutter 6 | . . . . . . . . 3 . . . 3 . . . . . . . . . . . . . Grunt 45 | . 1 . . . . . . 11 . . . 1 . . . . 1 7 4 . 2 6 6 2 4 Brawler 1 | . . . . . . . . . . . . 1 . . . . . . . . . . . . . Duelist 4 | . . . . . . . . 1 . . . . . . . . . . . . . . 1 . 2 Protector 2 | . . . . . . . . . . . . . . . . . . . . . . 1 . . 1 Sentry 13 | . . . . . 1 . . 3 . 1 . 1 . . 1 2 . 2 . . 1 . . 1 . Demolisher 1 | . . . . . . . . . . . . . . . . . . . . . . 1 . . . Specialist 1 | . . . . . . . . . . . . . . . . . . . . . . . . . 1 Hunter 11 | . . . . . . 1 . . . 2 . . . . . 1 1 1 . . . . . 3 2 Programmer 26 | . . . . . . . . 2 2 . . 7 . . 3 2 . . . . . 1 4 3 2 Heavy 1 | . . . . . . . . . . . . . . . . . . . . . . 1 . . . Behemoth 1 | . . . . . . . . . . . . . . . . . . . . . . 1 . . . Cetus Guard 2 | . . . . . . . . . . . . . . . . . . . 2 . . . . . . Thug 2 | . . . . . . . . . . . . . . . . . . 1 . . . . . . 1 Savage 1 | . . . . . . . . . . . . . . . . . . 1 . . . . . . . Guerrilla 1 | . . . . . . . . . . . . . . . . . . 1 . . . . . . . Best Kill Streak 15 | 4 6 . . . 1 1 . 3 2 3 . 6 . . 5 3 1 3 4 . 2 15 5 4 13 Combat Bots Only 15 | . 6 . . . 1 1 . 3 2 3 . 6 . . 4 3 1 2 4 . 2 15 5 4 11 Max Kills in Single Turn 3 | 1 1 . . . 1 1 . 2 1 3 . 2 . . 3 2 1 3 2 . 1 2 3 1 2 Gunslinging 1 | . . . . . . . . . . . . . . . . . . . 1 . . 1 . . 1 Exploded 3 | . . . . . . . . 2 . 3 . 2 . . 2 2 . . . . . . 3 . 2 Melee 1 | . . . . . . . . 1 1 1 . 1 . . . 1 . . . . . . . . . Uniques/NPCs Destroyed . | . . . . . . . . . . . . . . . . . . . . . . . . . . Combat | -11 -10 -10 -10 -9 -8 -8 -8 -8 -7 -7 -7 -7 -6 -6 -6 -6 -5 -5 -5 -5 -5 -5 -4 -4 -4 -------- Run | Yrd Mat Min Exi Min Mat Gar Mat Gar Fac Gar Fac Gar Fac Was Fac Gar Fac Ext Cet Arc Hub Gar Fac Gar Fac Hostile Shots Fired 1590 | . 25 . . . . 8 2 53 24 90 . 175 5 . 148 61 73 80 80 . 16 118 154 50 428 Missed 498 | . 10 . . . . 2 1 22 13 36 . 47 2 . 52 19 26 24 12 . 6 30 45 19 132 Hits 1092 | . 15 . . . . 6 1 31 11 54 . 128 3 . 96 42 47 56 68 . 10 88 109 31 296 Melee 4 | . . . . . . . . 1 . . . 2 . . . . . . . . . . . . 1 Projectile 1088 | . 15 . . . . 6 1 30 11 54 . 126 3 . 96 42 47 56 68 . 10 88 109 31 295 AOE 21 | . . . . . . . . 2 . . . . . . . . . . . . . 1 . . 18 Critical Strikes 27 | . . . . . . 1 . 3 . . . 3 . . 1 . . 1 7 . . . 2 . 9 Actively Blocked 3 | . . . . . . . . . . . . . . . . . . . . . . . . . 3 Part Disruptions 3 | . . . . . . . . . . . . 1 . . . . . . . . . . 1 . 1 Damage Taken 18790 | . 130 . . . . 91 10 605 189 642 . 1751 46 . 1417 593 744 1143 1503 . 178 1809 2065 729 5145 Core 2461 | . 39 . . . . 34 10 199 27 124 . 311 . . 84 40 42 89 117 . 20 141 135 34 1015 Absorbed by Shields 593 | . . . . . . 21 . . . . . . . . . . . . 198 . 54 114 . 25 181 Reduced by Siege Mode 275 | . . . . . . . . . . . . . . . . . . . 15 . . 51 10 . 199 Redirected to Shielding 99 | . . . . . . . . 53 46 . . . . . . . . . . . . . . . . Ignored by Resistances 86 | . . . . . . . . . . . . . . . . . . . . . . 43 . 43 . Regen/Repaired (Parts) 315 | . . . . . . . 11 . . . . . . . 95 60 . 149 . . . . . . . Core Remaining (%) 69 | 100 . . . 84 . . . 55 . . . 34 . . . 85 . . . . . 59 . . . Volleys Fired 625 | 11 22 . . 14 4 21 3 33 31 7 . 55 1 7 22 36 16 68 16 . 8 82 46 86 36 Largest 5 | 2 2 . . 1 1 1 1 1 1 1 . 2 1 1 3 4 3 4 4 . 4 4 5 2 5 Hottest 241 | 80 112 . . 100 56 61 61 61 61 75 . 75 5 5 91 134 99 134 134 . 134 171 241 208 190 Shots Fired 1107 | 22 44 . . 14 4 21 3 33 31 7 . 65 1 7 50 62 42 179 52 . 32 195 76 96 71 Gun 771 | 22 44 . . . 3 5 1 21 10 4 . 48 . . 43 37 39 156 48 . 32 152 30 36 40 Cannon 131 | . . . . . . . . . . . . . . . . . . 1 . . . 35 39 36 20 Launcher 29 | . . . . . . . . 5 . 3 . 5 . . 4 6 . . . . . . 1 . 5 Special 176 | . . . . 14 1 16 2 7 21 . . 12 1 7 3 19 3 22 4 . . 8 6 24 6 Kinetic 662 | . . . . . . . . . . . . 28 . . 43 37 39 156 48 . 32 152 57 19 51 Thermal 235 | 22 44 . . 6 3 5 1 21 10 4 . 20 . . . . . 1 . . . 35 12 45 6 Explosive 20 | . . . . . . . . 5 . 3 . 5 . . 1 . . . . . . . 1 . 5 Electromagnetic 20 | . . . . . . . . . . . . . . . 3 6 . . . . . . . 8 3 Robot Hit Streak 25 | 10 5 . . 5 6 14 . 13 7 9 . 11 12 14 15 16 11 19 15 . 7 13 8 22 25 Robot Miss Streak 5 | 2 2 . . . 1 1 1 2 3 1 . 2 . 1 3 2 4 4 3 . 3 3 5 1 2 Penetration Max 3 | . . . . . . . . . . . . 1 . . . . 2 3 . . 2 1 1 1 1 Secondary Targets 13 | . 2 . . . . . . . . . . . . . . 1 1 . 2 . . 5 . . 2 Max Gunslinging Chain 1 | . 1 . . . . . . . . . . . . . . 1 1 . 1 . . 1 . . 1 Shots Hit Robots 855 | 14 28 . . 2 3 22 . 77 22 18 . 99 1 6 35 43 22 113 38 . 16 123 50 70 53 Core Hits 401 | 8 16 . . . . 4 . 39 3 10 . 34 . . 21 19 12 60 16 . 7 45 44 21 42 Critical Kills 32 | . . . . . . . . . . . . 1 . . 1 3 3 11 4 . 2 2 4 1 . Critical Parts Destroyed 60 | . . . . . . . . . . 2 . 2 . . . 2 4 22 4 . 3 14 6 . 1 Critical Strikes 108 | . . . . . . . . 4 2 2 . 4 . . 1 5 7 34 9 . 5 16 13 5 1 Burn 6 | . . . . . . . . 2 2 . . . . . . . . . . . . . . 2 . Meltdown 1 | . . . . . . . . . . . . . . . . . . . . . . . . 1 . Destroy 85 | . . . . . . . . . . . . . . . . 4 6 34 9 . 5 16 10 . 1 Blast 5 | . . . . . . . . . . . . . . . . . . . . . . . 3 2 . Smash 8 | . . . . . . . . . . 2 . 3 . . 1 1 1 . . . . . . . . Sever 3 | . . . . . . . . 2 . . . 1 . . . . . . . . . . . . . Melee Attacks 411 | . . . . . 17 44 6 97 28 38 9 98 4 . 26 19 16 2 . . 3 4 . . . Impact 183 | . . . . . . . . . 3 38 9 59 4 . 26 19 16 2 . . 3 4 . . . Slashing 228 | . . . . . 17 44 6 97 25 . . 39 . . . . . . . . . . . . . Piercing . | . . . . . . . . . . . . . . . . . . . . . . . . . . Sneak Attacks 12 | . . . . . . . . 4 . . . 1 . . 3 1 2 1 . . . . . . . Combat Hostiles 2 | . . . . . . . . 2 . . . . . . . . . . . . . . . . . Follow-up Attacks . | . . . . . . . . . . . . . . . . . . . . . . . . . . Damage Inflicted 22674 | 149 401 . . . 35 215 . 3267 286 1026 . 3427 . . 1386 653 472 1518 603 . 294 2624 2086 1663 2569 Guns 9572 | 149 401 . . . 35 71 . 323 184 19 . 769 . . 701 323 173 1395 603 . 294 2116 243 619 1154 Cannons 3598 | . . . . . . . . . . . . . . . 12 . . . . . . 508 1191 1044 843 Explosions 3509 | . . . . . . . . 791 . 258 . 523 . . 448 248 17 . . . . . 652 . 572 Melee 5937 | . . . . . . 144 . 2153 102 749 . 2135 . . 225 82 236 111 . . . . . . . Ramming 58 | . . . . . . . . . . . . . . . . . 46 12 . . . . . . . Kinetic 9566 | . . . . . . . . . . . . 349 . . 701 323 173 1395 603 . 294 2116 1253 517 1842 Thermal 3296 | 149 401 . . . 35 71 . 323 184 19 . 420 . . . 29 . . . . . 508 181 889 87 Explosive 2672 | . . . . . . . . 791 . 258 . 523 . . 242 . . . . . . . 286 . 572 Electromagnetic 1133 | . . . . . . . . . . . . . . . 206 219 17 . . . . . 366 257 68 Impact 2599 | . . . . . . . . . . 749 . 1184 . . 237 82 236 111 . . . . . . . Slashing 3350 | . . . . . . 144 . 2153 102 . . 951 . . . . . . . . . . . . . Piercing . | . . . . . . . . . . . . . . . . . . . . . . . . . . Highest Corruption 16 | . . . . . . . . . . . . 16 . 9 13 14 . 1 1 1 1 1 3 3 4 Average Corruption 5 | . . . . . . . . . . . . 9 . 9 9 13 . 1 1 1 1 1 2 3 3 Corruption Purged . | . . . . . . . . . . . . . . . . . . . . . . . . . . Corruption Blocked . | . . . . . . . . . . . . . . . . . . . . . . . . . . Effects 314 | . . . . . . . . . . . . 68 . 3 54 91 . 4 5 . 1 22 13 42 11 Message Errors 82 | . . . . . . . . . . . . 19 . 1 13 22 . 1 2 . . 7 6 8 3 Matter Fused 60 | . . . . . . . . . . . . 14 . 1 8 16 . 1 1 . . 3 2 12 2 Heat Flow Errors 40 | . . . . . . . . . . . . 11 . 1 6 10 . 1 . . . 4 . 6 1 Energy Discharges 35 | . . . . . . . . . . . . 5 . . 7 16 . . . . . 3 3 1 . Parts Rejected 5 | . . . . . . . . . . . . 1 . . 1 2 . . . . . . . . 1 Parts Fused 2 | . . . . . . . . . . . . . . . 1 . . . . . . . . 1 . Data Loss (minor) 39 | . . . . . . . . . . . . 7 . . 8 10 . 1 2 . 1 2 . 5 3 Data Loss (major) 20 | . . . . . . . . . . . . 5 . . 4 5 . . . . . 2 . 4 . Misfires 16 | . . . . . . . . . . . . 3 . . 1 6 . . . . . . . 5 1 Alerts 10 | . . . . . . . . . . . . 3 . . 3 3 . . . . . . 1 . . Misdirections 1 | . . . . . . . . . . . . . . . 1 . . . . . . . . . . Weapon Failures 4 | . . . . . . . . . . . . . . . 1 1 . . . . . 1 1 . . Overload Shots . | . . . . . . . . . . . . . . . . . . . . . . . . . . Overflow Damage 1033 | . . . . . . . . 23 32 168 . 278 . . 59 . 196 16 . . . 35 87 3 136 Projectiles 236 | . . . . . . . . . . . . . . . . . . . . . . 35 87 3 111 Explosions 43 | . . . . . . . . . . 13 . 5 . . . . . . . . . . . . 25 Melee 754 | . . . . . . . . 23 32 155 . 273 . . 59 . 196 16 . . . . . . . Knockbacks 17 | . . . . . . . . . . . . 1 . . . . 3 . . . . . 8 . 5 Impact 4 | . . . . . . . . . . . . 1 . . . . 3 . . . . . . . . Kinetic 12 | . . . . . . . . . . . . . . . . . . . . . . . 8 . 4 Secondary 1 | . . . . . . . . . . . . . . . . . . . . . . . . . 1 Self-Inflicted Damage 321 | . . . . . . . . 59 . 58 . 26 . . 41 . . . . . . . 80 . 57 Shots 9 | . . . . . . . . 2 . 1 . 1 . . 1 . . . . . . . 2 . 2 Rammed 9 | . . . . . . . . . . . . . . . . . 4 5 . . . . . . . Targets Rammed 9 | . . . . . . . . . . . . . . . . . 4 5 . . . . . . . Kicked . | . . . . . . . . . . . . . . . . . . . . . . . . . . Crushed . | . . . . . . . . . . . . . . . . . . . . . . . . . . Highest Temperature 532 | 54 228 . . 84 30 84 20 72 . 42 . 358 . 244 266 277 214 337 324 . 163 532 338 280 324 Average Temperature 104 | 21 77 . . 39 16 37 12 20 . 14 . 143 . 128 96 115 82 127 153 . 58 120 72 100 106 Received Heat Transfer 2579 | . 18 . . . . . . 261 . 117 . 249 9 . 138 45 . 189 339 . 46 159 267 103 639 Effects 21 | . . . . . . . . . . . . 3 . . . . . 2 . . . 10 2 3 1 Shutdowns 5 | . . . . . . . . . . . . 1 . . . . . . . . . 2 2 . . Energy Bleed 8 | . . . . . . . . . . . . 2 . . . . . 2 . . . 2 . 1 1 Interference 4 | . . . . . . . . . . . . . . . . . . . . . . 2 . 2 . Matter Decay 3 | . . . . . . . . . . . . . . . . . . . . . . 3 . . . Short Circuit 1 | . . . . . . . . . . . . . . . . . . . . . . 1 . . . Siege Activations 11 | . . . . . . . . . . . . . . . . . . . 2 . . 4 3 1 1 Total Turns 179 | . . . . . . . . . . . . . . . . . . . 21 . . 93 35 9 21 Longest Duration 52 | . . . . . . . . . . . . . . . . . . . 16 . . 52 19 9 21 Martial Activations . | . . . . . . . . . . . . . . . . . . . . . . . . . . Shielding Activations . | . . . . . . . . . . . . . . . . . . . . . . . . . . Robots Disrupted 1 | . . . . . . . . . . . . . . . . . . . . . . . 1 . . Combat Hostiles 1 | . . . . . . . . . . . . . . . . . . . . . . . 1 . . Robots Corrupted 10 | . . . . . . . . . . 2 . 4 . . . . 2 . . . . . . 2 . Combat Hostiles 6 | . . . . . . . . . . 2 . 2 . . . . . . . . . . . 2 . Parts Fried 9 | . . . . . . . . . . 3 . 2 . . . . 2 . . . . . 1 1 . Impact Corruptions 32 | . . . . . . . . . . 6 . 14 . . 2 . 9 1 . . . . . . . Robots Melted 4 | . . . . . 1 . . . . . . 1 . . . . . . . . . . . 2 . Combat Hostiles 3 | . . . . . 1 . . . . . . 1 . . . . . . . . . . . 1 . Parts Melted 9 | 1 . . . . 2 . . 2 2 . . 1 . . . . . . . . . . . 1 . Heat Transferred 6018 | 350 868 . . . 74 148 . 851 481 37 . 592 . . . 50 . . . . . 518 185 1790 74 Parts Sabotaged . | . . . . . . . . . . . . . . . . . . . . . . . . . . Parts Stolen . | . . . . . . . . . . . . . . . . . . . . . . . . . . Parts Stripped . | . . . . . . . . . . . . . . . . . . . . . . . . . . Power Chain Reactions 1 | . . . . . . . . . . . . . . . . 1 . . . . . . . . . Alert | -11 -10 -10 -10 -9 -8 -8 -8 -8 -7 -7 -7 -7 -6 -6 -6 -6 -5 -5 -5 -5 -5 -5 -4 -4 -4 ------- Run | Yrd Mat Min Exi Min Mat Gar Mat Gar Fac Gar Fac Gar Fac Was Fac Gar Fac Ext Cet Arc Hub Gar Fac Gar Fac Maximum Alert Level 5 | . . . . . . 1 . 3 2 3 2 4 2 . 1 4 2 2 1 . . 5 4 5 4 Low Security (%) 32 | 100 100 100 . 100 100 82 100 29 31 12 63 16 . 100 91 2 . 58 58 100 100 24 . . . Level 1 18 | . . . . . . 17 . 33 55 47 32 16 . . 8 21 27 38 41 . . 7 . . . Level 2 16 | . . . . . . . . 22 13 36 3 39 100 . . 28 72 3 . . . 11 . . . Level 3 22 | . . . . . . . . 15 . 3 . 27 . . . 47 . . . . . 34 80 42 83 Level 4 8 | . . . . . . . . . . . . . . . . . . . . . . 19 19 41 16 Level 5 2 | . . . . . . . . . . . . . . . . . . . . . . 3 . 16 . High Security . | . . . . . . . . . . . . . . . . . . . . . . . . . . Max Security . | . . . . . . . . . . . . . . . . . . . . . . . . . . Peak Influence 2197 | 10 194 120 . 3 45 298 145 873 457 779 408 1136 596 175 270 1190 626 461 256 65 67 1672 1159 2197 1152 Initial 1152 | . . 75 . . . 8 144 20 457 6 408 . 596 175 94 184 624 247 256 65 8 18 877 736 1152 Average 508 | 1 45 88 . . 6 106 64 371 253 352 184 535 548 157 69 644 452 182 191 45 36 706 965 1216 904 Influence Increases 13160 | 35 334 75 . 4 78 350 141 953 254 843 68 1426 4 . 531 1136 730 1389 138 . 116 1804 657 1671 423 Destroy 0b10 Robot/C 4620 | . 200 . . . 20 120 60 460 100 180 . 400 . . 220 400 280 720 120 . 60 440 300 320 220 Destroy 0b10 Robot/NC 260 | 35 20 . . . . 10 . 10 . 5 . 25 . . 25 . 40 45 . . 5 10 5 10 15 Destroy Leader 632 | . 44 . . . 10 10 20 30 20 . . 50 . . 52 10 72 102 10 . 22 30 60 60 30 Allied During Kill 645 | . . . . . . 18 21 25 4 4 . 3 . . 2 52 114 237 . . . . . 137 28 Successful Hack 503 | . 9 . . . 16 28 19 . 76 24 59 18 . . 75 33 . 75 . . . 28 24 14 5 Select Force Hacks 60 | . 60 . . . . . . . . . . . . . . . . . . . . . . . . Disable Machine 510 | . . . . . 15 . . . . . . 15 . . 75 45 45 30 . . 15 60 150 60 . Anti-Garrison Action 3900 | . . . . . . 50 . 300 . 400 . 650 . . . 450 . . . . . 1050 . 1000 . Destroy Structure 1265 | . 1 . . 4 17 84 6 113 24 80 9 145 4 . 37 146 164 120 8 . 14 66 88 55 80 Partial Spotted 60 | . . . . . . . 15 . . 30 . 15 . . . . . . . . . . . . . Lose Combat Pursuer 705 | . . 75 . . . 30 . 15 30 120 . 105 . . 45 . 15 60 . . . 120 30 15 45 Influence Decreases 12311 | 35 140 169 100 4 65 65 407 112 1118 73 847 290 640 365 403 209 1413 1437 433 139 114 159 1277 526 1771 Entered New Map 5475 | . . 119 100 . . 5 154 12 416 3 371 . 540 325 41 79 566 260 203 99 17 9 795 316 1045 Time Decay 3665 | 35 140 50 . 4 65 . 131 . 415 . 192 . 100 40 316 . 542 590 190 40 97 . 392 . 326 Lost Part 670 | . . . . . . . . 40 . 30 . 150 . . 40 . 30 . 40 . . 30 70 30 210 Lost Ally 1175 | . . . . . . 60 19 60 30 40 . 140 . . 6 130 . 330 . . . 120 20 180 40 Purge Threat 1326 | . . . . . . . 103 . 257 . 284 . . . . . 275 257 . . . . . . 150 Squads Dispatched 39 | . 3 . . . . . 1 . 4 . 1 . . . 5 . 7 6 1 . 3 . 4 . 4 Investigation 8 | . 3 . . . . . . . . . . . . . . . 1 3 1 . . . . . . Extermination 14 | . . . . . . . . . 4 . 1 . . . 3 . 3 . . . . . 2 . 1 Reinforcement 8 | . . . . . . . 1 . . . . . . . 1 . 1 3 . . 1 . 1 . . Assault 6 | . . . . . . . . . . . . . . . . . 2 . . . . . 1 . 3 Garrison 3 | . . . . . . . . . . . . . . . 1 . . . . . 2 . . . . Intercept . | . . . . . . . . . . . . . . . . . . . . . . . . . . Searches Triggered . | . . . . . . . . . . . . . . . . . . . . . . . . . . Unchained Authorized 1 | . . . . . . . . . . . . . . . . . . . . . . . . . 1 Construction Impeded 2 | . . . . . . . . . . . . . . . . . . 2 . . . . . . . Haulers Reinforced . | . . . . . . . . . . . . . . . . . . . . . . . . . . Active Scanning Responses . | . . . . . . . . . . . . . . . . . . . . . . . . . . Cargo Convoy Interrupts . | . . . . . . . . . . . . . . . . . . . . . . . . . . Alert ID Control Effect 19 | . . . . . . . . . . . . . . . . 10 . . . . . 1 . 7 1 Stealth | -11 -10 -10 -10 -9 -8 -8 -8 -8 -7 -7 -7 -7 -6 -6 -6 -6 -5 -5 -5 -5 -5 -5 -4 -4 -4 --------- Run | Yrd Mat Min Exi Min Mat Gar Mat Gar Fac Gar Fac Gar Fac Was Fac Gar Fac Ext Cet Arc Hub Gar Fac Gar Fac Distress Signals 17 | . . . . . 1 1 1 . 1 . . . . . 7 . . 4 1 . 1 . . . . Communications Jammed 34 | . . . . . . 4 8 . . . . . . . 2 . 4 2 . . . . 2 . 12 Distress Signals 34 | . . . . . . 4 8 . . . . . . . 2 . 4 2 . . . . 2 . 12 Times Spotted 372 | . 13 3 . . 1 6 5 26 12 20 2 28 7 6 26 26 16 42 9 . 8 36 23 31 26 Peak Tracking Total 12 | . 5 3 . . 1 3 1 3 5 4 1 9 7 2 5 4 5 4 5 . 3 8 6 4 12 Tactical Retreats 32 | . . 2 . . . 1 . 1 1 6 . 5 . . 1 . 1 3 . . . 5 2 1 3 Traps | -11 -10 -10 -10 -9 -8 -8 -8 -8 -7 -7 -7 -7 -6 -6 -6 -6 -5 -5 -5 -5 -5 -5 -4 -4 -4 ------- Run | Yrd Mat Min Exi Min Mat Gar Mat Gar Fac Gar Fac Gar Fac Was Fac Gar Fac Ext Cet Arc Hub Gar Fac Gar Fac Traps Triggered 52 | . 2 . . . . 11 . 2 1 3 1 8 1 . . 2 1 4 . . 2 8 2 4 . Indirectly . | . . . . . . . . . . . . . . . . . . . . . . . . . . Trap Hack Attempts . | . . . . . . . . . . . . . . . . . . . . . . . . . . Triggered . | . . . . . . . . . . . . . . . . . . . . . . . . . . Disarmed . | . . . . . . . . . . . . . . . . . . . . . . . . . . Reprogrammed . | . . . . . . . . . . . . . . . . . . . . . . . . . . Reused . | . . . . . . . . . . . . . . . . . . . . . . . . . . Traps Extracted . | . . . . . . . . . . . . . . . . . . . . . . . . . . Installed . | . . . . . . . . . . . . . . . . . . . . . . . . . . Triggered . | . . . . . . . . . . . . . . . . . . . . . . . . . . Machines | -11 -10 -10 -10 -9 -8 -8 -8 -8 -7 -7 -7 -7 -6 -6 -6 -6 -5 -5 -5 -5 -5 -5 -4 -4 -4 ---------- Run | Yrd Mat Min Exi Min Mat Gar Mat Gar Fac Gar Fac Gar Fac Was Fac Gar Fac Ext Cet Arc Hub Gar Fac Gar Fac Machines Disabled 54 | . . . . 1 1 1 . 3 . . . 4 . . 5 5 3 4 1 . 1 8 10 7 . Max in Single Turn 4 | . . . . 1 1 1 . 1 . . . 1 . . 4 2 2 1 1 . 1 1 4 1 . Garrison Relay 14 | . . . . . . 1 . 3 . . . 3 . . . 1 . . . . . 3 . 3 . Energy Cycler 1 | . . . . . . . . . . . . . . . . . . 1 . . . . . . . Machines Repaired . | . . . . . . . . . . . . . . . . . . . . . . . . . . Machines Dismantled . | . . . . . . . . . . . . . . . . . . . . . . . . . . Machines Sabotaged . | . . . . . . . . . . . . . . . . . . . . . . . . . . Overloaded Fab Kills . | . . . . . . . . . . . . . . . . . . . . . . . . . . Hacking | -11 -10 -10 -10 -9 -8 -8 -8 -8 -7 -7 -7 -7 -6 -6 -6 -6 -5 -5 -5 -5 -5 -5 -4 -4 -4 --------- Run | Yrd Mat Min Exi Min Mat Gar Mat Gar Fac Gar Fac Gar Fac Was Fac Gar Fac Ext Cet Arc Hub Gar Fac Gar Fac Machines Accessed 99 | . 4 . 1 1 8 2 8 2 12 3 8 3 . . 9 3 3 16 2 . 2 2 4 2 4 Terminals 66 | . 1 . . . 6 2 5 2 6 3 4 3 . . 4 3 2 15 2 . 1 2 2 2 1 Fabricators 4 | . . . . . . . . . 1 . . . . . 1 . . . . . . . . . 2 Repair Stations 9 | . 1 . . . . . 1 . 1 . 2 . . . 1 . 1 1 . . . . 1 . . Recycling Units 3 | . 2 . . . . . . . 1 . . . . . . . . . . . . . . . . Scanalyzers 7 | . . . . . 1 . 1 . 1 . 1 . . . 2 . . . . . . . . . 1 Garrison Access 8 | . . . . . 1 . 1 . 2 . 1 . . . 1 . . . . . 1 . 1 . . Total Hacks 274 | . 8 . 1 1 21 3 36 5 27 4 31 4 . . 42 4 7 50 6 . 2 4 6 3 9 Successful 137 | . 5 . 1 1 7 2 23 1 15 3 14 2 . . 23 3 1 22 2 . 1 2 3 1 5 Failed 136 | . 3 . . . 13 1 13 4 12 1 17 2 . . 19 1 6 28 4 . 1 2 3 2 4 Catastrophic 24 | . 1 . . . 2 . 1 1 6 . 2 . . . 3 . . 1 1 . 1 1 2 . 2 Database Lockouts 1 | . . . . . 1 . . . . . . . . . . . . . . . . . . . . Manual 109 | . 6 . 1 . 12 . 16 1 14 . 9 . . . 14 . 4 19 1 . . 2 4 . 6 Terminals 177 | . 3 . . . 15 3 20 5 18 4 15 4 . . 16 4 4 44 6 . 1 4 4 3 4 Fabricators 9 | . . . . . . . . . 2 . . . . . 4 . . . . . . . . . 3 Repair Stations 30 | . 3 . . . . . 2 . 2 . 8 . . . 5 . 3 6 . . . . 1 . . Recycling Units 4 | . 2 . . . . . . . 2 . . . . . . . . . . . . . . . . Scanalyzers 41 | . . . . . 2 . 13 . 1 . 7 . . . 16 . . . . . . . . . 2 Garrison Access 11 | . . . . . 4 . 1 . 2 . 1 . . . 1 . . . . . 1 . 1 . . Terminal Hacks 46 | . 1 . 1 1 2 2 2 1 6 3 4 2 . . . 3 . 12 2 . . 2 . 1 1 Record 2 | . . . . . . . . . . . . . . . . . . . 2 . . . . . . Robot Analysis 2 | . 1 . . . . . . . . . . . . . . . . 1 . . . . . . . Open Door 10 | . . . . 1 . . . . . 1 . 1 . . . 1 . 6 . . . . . . . Branch Access Points 1 | . . . . . . . . . . . . . . . . . . 1 . . . . . . . Emergency Access Points 7 | . . . . . . 1 . 1 . 1 . 1 . . . 1 . . . . . 1 . 1 . Repair Station Index 1 | . . . . . . . . . 1 . . . . . . . . . . . . . . . . Garrison Index 2 | . . . . . . . . . 1 . 1 . . . . . . . . . . . . . . Unreport Threat 8 | . . . . . . . 1 . 2 . 2 . . . . . . 2 . . . . . . 1 Investigation Status 1 | . . . . . . . . . 1 . . . . . . . . . . . . . . . . Recall Investigation 1 | . . . . . . . . . . . . . . . . . . 1 . . . . . . . Recall Reinforcements 1 | . . . . . . . 1 . . . . . . . . . . . . . . . . . . Registered Components 1 | . . . . . . . . . . . . . . . . . . 1 . . . . . . . Zone Layout 4 | . . . . . 2 . . . 1 . 1 . . . . . . . . . . . . . . Garrison Registry 1 | . . . . . . 1 . . . . . . . . . . . . . . . . . . . Patrol Navigation 2 | . . . . . . . . . . 1 . . . . . . . . . . . 1 . . . Security Stations 1 | . . . . . . . . . . . . . . . . 1 . . . . . . . . . Proto ID Catalog 1 | . . . 1 . . . . . . . . . . . . . . . . . . . . . . Fabricator Hacks 4 | . . . . . . . . . 1 . . . . . 2 . . . . . . . . . 1 Network Status 3 | . . . . . . . . . 1 . . . . . 1 . . . . . . . . . 1 Load Schematic 1 | . . . . . . . . . . . . . . . 1 . . . . . . . . . . Repair Station Hacks 12 | . 1 . . . . . 2 . 1 . 2 . . . 3 . . 3 . . . . . . . Scan Component 8 | . 1 . . . . . 1 . 1 . 1 . . . 2 . . 2 . . . . . . . Repair 4 | . . . . . . . 1 . . . 1 . . . 1 . . 1 . . . . . . . Recycling Unit Hacks 1 | . . . . . . . . . 1 . . . . . . . . . . . . . . . . Report Inventory 1 | . . . . . . . . . 1 . . . . . . . . . . . . . . . . Scanalyzer 32 | . . . . . 1 . 12 . . . 5 . . . 13 . . . . . . . . . 1 Insert Component 7 | . . . . . . . 5 . . . . . . . 2 . . . . . . . . . . Analyze 10 | . . . . . . . 5 . . . . . . . 5 . . . . . . . . . . Retrieve Study 15 | . . . . . 1 . 2 . . . 5 . . . 6 . . . . . . . . . 1 Garrison Access Hacks 9 | . . . . . 2 . 1 . 2 . 1 . . . 1 . . . . . 1 . 1 . . Unlock Access 8 | . . . . . 1 . 1 . 2 . 1 . . . 1 . . . . . 1 . 1 . . Coupler Status 1 | . . . . . 1 . . . . . . . . . . . . . . . . . . . . Unauthorized Hacks 33 | . 3 . . . 2 . 6 . 4 . 2 . . . 4 . 1 7 . . . . 2 . 2 Terminals 28 | . . . . . 1 . 6 . 4 . 2 . . . 4 . 1 7 . . . . 2 . 1 Assimilate 7 | . . . . . 1 . 2 . . . . . . . 1 . . 3 . . . . . . . Botnet 18 | . . . . . . . 4 . 2 . 2 . . . 2 . 1 4 . . . . 2 . 1 Disrupt 3 | . . . . . . . . . 2 . . . . . 1 . . . . . . . . . . Fabricators 1 | . . . . . . . . . . . . . . . . . . . . . . . . . 1 Liberate 1 | . . . . . . . . . . . . . . . . . . . . . . . . . 1 Repair Stations 1 | . 1 . . . . . . . . . . . . . . . . . . . . . . . . Mechanics 1 | . 1 . . . . . . . . . . . . . . . . . . . . . . . . Recycling Units 2 | . 2 . . . . . . . . . . . . . . . . . . . . . . . . Tunnel 2 | . 2 . . . . . . . . . . . . . . . . . . . . . . . . Scanalyzers . | . . . . . . . . . . . . . . . . . . . . . . . . . . Garrison Access 1 | . . . . . 1 . . . . . . . . . . . . . . . . . . . . Watchers 1 | . . . . . 1 . . . . . . . . . . . . . . . . . . . . Data Cores Recovered . | . . . . . . . . . . . . . . . . . . . . . . . . . . Used . | . . . . . . . . . . . . . . . . . . . . . . . . . . Hacking Detections 75 | . 2 . . . 8 1 5 2 11 1 7 1 . . 8 1 3 12 2 . 2 2 2 2 3 Full Trace Events 9 | . 2 . . . . . . 1 . . . . . . . . 1 3 1 . . . . 1 . Feedback Events 1 | . . . . . . . . . . . . . . . . . . 1 . . . . . . . Corruption 1 | . . . . . . . . . . . . . . . . . . 1 . . . . . . . Feedback Blocked . | . . . . . . . . . . . . . . . . . . . . . . . . . . Robot Schematics Acquired . | . . . . . . . . . . . . . . . . . . . . . . . . . . Robots Built . | . . . . . . . . . . . . . . . . . . . . . . . . . . Authchips . | . . . . . . . . . . . . . . . . . . . . . . . . . . Time . | . . . . . . . . . . . . . . . . . . . . . . . . . . Total Robot Build Rating . | . . . . . . . . . . . . . . . . . . . . . . . . . . Part Schematics Acquired 7 | . . . . . . . 5 . . . . . . . 2 . . . . . . . . . . Parts Built . | . . . . . . . . . . . . . . . . . . . . . . . . . . Authchips . | . . . . . . . . . . . . . . . . . . . . . . . . . . Time . | . . . . . . . . . . . . . . . . . . . . . . . . . . Total Part Build Rating . | . . . . . . . . . . . . . . . . . . . . . . . . . . Part Studies Acquired 14 | . . . . . . . 2 . . . 5 . . . 6 . . . . . . . . . 1 Parts Repaired 4 | . . . . . . . 1 . . . 1 . . . 1 . . 1 . . . . . . . Time 167 | . . . . . . . 44 . . . 17 . . . 44 . . 62 . . . . . . . Parts Recycled . | . . . . . . . . . . . . . . . . . . . . . . . . . . Recycled Matter . | . . . . . . . . . . . . . . . . . . . . . . . . . . Retrieved Matter . | . . . . . . . . . . . . . . . . . . . . . . . . . . Retrieved Components . | . . . . . . . . . . . . . . . . . . . . . . . . . . Parts Scanalyzed 7 | . . . . . . . 5 . . . . . . . 2 . . . . . . . . . . Part Schematics Acquired 7 | . . . . . . . 5 . . . . . . . 2 . . . . . . . . . . Parts Damaged . | . . . . . . . . . . . . . . . . . . . . . . . . . . Bothacking | -11 -10 -10 -10 -9 -8 -8 -8 -8 -7 -7 -7 -7 -6 -6 -6 -6 -5 -5 -5 -5 -5 -5 -4 -4 -4 ------------ Run | Yrd Mat Min Exi Min Mat Gar Mat Gar Fac Gar Fac Gar Fac Was Fac Gar Fac Ext Cet Arc Hub Gar Fac Gar Fac Used RIF Installer 9 | . . . . . . 1 . 1 . 2 . 1 . . . 1 . . . . . 2 . 1 . Code Merge 1 | . . . . . . . . . . . . . . . . 1 . . . . . . . . . Signal Jammer 1 | . . . . . . . . 1 . . . . . . . . . . . . . . . . . Robot Detection 1 | . . . . . . . . . . . . . . . . . . . . . . . . 1 . Patrol Navigation 1 | . . . . . . . . . . 1 . . . . . . . . . . . . . . . Alert ID Control 1 | . . . . . . . . . . 1 . . . . . . . . . . . . . . . Autooverride 2 | . . . . . . . . . . . . 1 . . . . . . . . . 1 . . . Autoassimilate 1 | . . . . . . . . . . . . . . . . . . . . . . 1 . . . Robots Hacked 63 | . . . . 2 1 . . 4 4 . . 7 1 6 2 8 2 2 2 . . 6 2 14 . Non-combat 8 | . . . . 2 . . . . 2 . . . 1 . . 1 2 . . . . . . . . Combat 55 | . . . . . 1 . . 4 2 . . 7 . 6 2 7 . 2 2 . . 6 2 14 . Autooverrided 7 | . . . . . . . . . . . . 1 . . 1 . . . . . . 3 1 1 . Autoassimilated 3 | . . . . . . . . . . . . . . . . . . . . . . . . 3 . Robot Hacks Applied 61 | . . . . 2 1 . . 4 6 . . 6 1 6 1 10 3 2 2 . . 4 1 10 2 parse_system 5 | . . . . 2 1 . . . 1 . . . . . . 1 . . . . . . . . . find_chute 1 | . . . . . . . . . . . . . 1 . . . . . . . . . . . . drop_inventory 1 | . . . . . . . . . 1 . . . . . . . . . . . . . . . . purge_threat 2 | . . . . . . . . . . . . . . . . . 2 . . . . . . . . map_route 1 | . . . . . . . . . . . . . . . . . 1 . . . . . . . . ignore_targets 6 | . . . . . . . . . . . . . . 6 . . . . . . . . . . . amplify_resonance 4 | . . . . . . . . . . . . 1 . . . . . . 2 . . . . 1 . reboot_system 4 | . . . . . . . . . . . . . . . . 1 . 1 . . . . . 2 . go_dormant 1 | . . . . . . . . . . . . . . . . 1 . . . . . . . . . overwrite_iff 9 | . . . . . . . . . 3 . . . . . 1 1 . . . . . 1 . 2 1 streamctrl_high 4 | . . . . . . . . 1 . . . . . . . . . . . . . 1 . 1 1 formatsys_low 1 | . . . . . . . . . . . . . . . . 1 . . . . . . . . . formatsys_high 22 | . . . . . . . . 3 1 . . 5 . . . 5 . 1 . . . 2 1 4 . Relay Couplers Released 61 | . . . . . . 3 . 11 . . . 17 . . . 5 . . . . . 9 3 13 . Machine Destruction 54 | . . . . . . 3 . 11 . . . 13 . . . 5 . . . . . 9 . 13 . Programmers 7 | . . . . . . . . . . . . 4 . . . . . . . . . . 3 . . Attached 28 | . . . . . . . . 3 2 . . 4 1 . 2 5 1 1 . . . 2 2 5 . Merged Code Value 33 | . . . . . . . . . . . . . . . . 6 . . . . . . . 27 . Fabnet Peak Effective % . | . . . . . . . . . . . . . . . . . . . . . . . . . . Robots Rewired 28 | . . . . . . 9 . . . . . . . . . 2 . 11 . . . . . 6 . Allies Hacked 3 | . . . . . . . . . 2 . . . . . . . . . . . . . 1 . . Hacks Repelled . | . . . . . . . . . . . . . . . . . . . . . . . . . . Allies | -11 -10 -10 -10 -9 -8 -8 -8 -8 -7 -7 -7 -7 -6 -6 -6 -6 -5 -5 -5 -5 -5 -5 -4 -4 -4 -------- Run | Yrd Mat Min Exi Min Mat Gar Mat Gar Fac Gar Fac Gar Fac Was Fac Gar Fac Ext Cet Arc Hub Gar Fac Gar Fac Total Allies 85 | . . . . . . 9 . 4 3 2 . 8 . . 3 11 . 19 . . . 6 2 18 . Largest Group 11 | . . . . . . 6 6 5 1 2 . 2 . . 1 4 3 11 . . . 2 1 11 5 Highest-Rated Group 420 | . . . . . . 120 30 38 26 56 . 62 . . 32 360 348 337 . . . 89 49 420 230 Highest-Rated Ally 116 | . . . . . . 40 5 16 26 31 . 32 . . 32 116 116 116 . . . 46 49 56 49 Total Orders 33 | . . . . . . 2 6 2 4 . . . . . . 7 2 4 . . . . . 4 2 STAY 19 | . . . . . . 1 3 1 4 . . . . . . 3 1 3 . . . . . 2 1 FOLLOW 13 | . . . . . . 1 3 1 . . . . . . . 3 1 1 . . . . . 2 1 AID 1 | . . . . . . . . . . . . . . . . 1 . . . . . . . . . Ally Attacks 553 | . . . . . . 11 31 38 8 9 . 20 . . 1 67 33 184 . . . 23 1 123 4 Total Damage 12960 | . . . . . . 301 159 408 62 173 . 235 . . 46 1652 1637 4039 . . . 479 58 3607 104 Kills 97 | . . . . . . 5 3 4 2 . . 1 . . . 19 18 28 . . . 1 . 15 1 Allies Corrupted 1 | . . . . . . . . . . . . . . . . . . . . . . . . 1 . Allies Melted 3 | . . . . . . . . . . . . . . . . . 1 1 . . . . . 1 . Intel | -11 -10 -10 -10 -9 -8 -8 -8 -8 -7 -7 -7 -7 -6 -6 -6 -6 -5 -5 -5 -5 -5 -5 -4 -4 -4 ------- Run | Yrd Mat Min Exi Min Mat Gar Mat Gar Fac Gar Fac Gar Fac Was Fac Gar Fac Ext Cet Arc Hub Gar Fac Gar Fac Active Infowar (turns) 13530 | 87 256 5 . . 12 688 262 928 189 1062 512 711 . . 1022 957 1542 501 . . . 1826 929 1343 698 Optics 2022 | . . . . . . . . . . . . . . . . . . . . . . . . 1324 698 A.S.S. 2 | . . . . . . . . . . . . . . . . . . . . . . . . 2 . Structural 1 | . . . . . . . . . . . . . . . . . . 1 . . . . . . . Traps 369 | . . . . . . . . 369 . . . . . . . . . . . . . . . . . Seismic 348 | 87 256 5 . . . . . . . . . . . . . . . . . . . . . . . Cloaking 711 | . . . . . . . . 9 . . . . . . . . . . . . . 702 . . . Jamming 12103 | . . . . . 12 688 262 692 187 1062 512 711 . . 1022 957 1542 500 . . . 1124 929 1276 627 ECM 2 | . . . . . . . . . 2 . . . . . . . . . . . . . . . . Robot Analysis Total 2 | . 1 . . . . . . . . . . . . . . . . 1 . . . . . . . Derelict Logs Recovered 4 | . . 1 . 3 . . . . . . . . . . . . . . . . . . . . . Drone Launches . | . . . . . . . . . . . . . . . . . . . . . . . . . . Drone Recoveries . | . . . . . . . . . . . . . . . . . . . . . . . . . . Exploration | -11 -10 -10 -10 -9 -8 -8 -8 -8 -7 -7 -7 -7 -6 -6 -6 -6 -5 -5 -5 -5 -5 -5 -4 -4 -4 ------------- Run | Yrd Mat Min Exi Min Mat Gar Mat Gar Fac Gar Fac Gar Fac Was Fac Gar Fac Ext Cet Arc Hub Gar Fac Gar Fac Turns Passed 25254 | 225 339 100 87 282 373 694 307 1216 1028 1242 512 2405 216 86 1550 2257 1542 2489 386 96 208 3107 929 2856 722 Spaces Moved 17069 | 100 281 208 230 470 506 1071 578 1467 1348 1518 779 1516 164 70 966 1168 637 1007 137 41 67 1113 302 1041 284 Core 56 | 1 . . . . . . . . . . . 8 . . . . . . . . . . . . 47 Treads 5883 | . . . . . . . . . . . . 27 . . 106 1168 637 1007 137 41 67 1113 302 1041 237 Legs 220 | 88 132 . . . . . . . . . . . . . . . . . . . . . . . . Wheels 2508 | 11 . . . . . . . . . . . 1403 164 70 860 . . . . . . . . . . Hover 4197 | . . . . . . . . 474 1348 1518 779 78 . . . . . . . . . . . . . Flight 4205 | . 149 208 230 470 506 1071 578 993 . . . . . . . . . . . . . . . . . Fastest Speed 28 | 50 37 37 37 37 31 31 31 28 48 48 48 90 105 105 105 160 200 200 200 240 160 160 229 200 50 Average Speed 113 | 167 82 37 37 40 31 31 31 39 52 57 56 112 105 105 119 165 211 200 217 240 238 238 236 235 208 Slowest Speed 800 | 190 190 37 37 107 34 101 31 180 112 108 108 800 105 105 160 200 220 220 240 240 240 246 246 240 240 Overloaded Moves . | . . . . . . . . . . . . . . . . . . . . . . . . . . Propulsion Burnouts . | . . . . . . . . . . . . . . . . . . . . . . . . . . Robots Hopped 10 | . . . . 9 . . 1 . . . . . . . . . . . . . . . . . . Potential Cave-ins . | . . . . . . . . . . . . . . . . . . . . . . . . . . Cave-ins Triggered 1 | . . . . . . . . . . . . . . . 1 . . . . . . . . . . Exploration Rate (%) 49 | 4 49 40 60 83 30 81 26 67 34 93 18 94 5 84 24 90 11 91 61 66 8 74 8 79 7 Regions Visited 25 Branch Regions 7 Pre-discovered Areas 5 | . 2 1 . 2 . . . . . . . . . . . . . . . . . . . . . Known Exits Taken 8 | . . . . . 1 . 1 . 1 . 1 . . . 1 . . 1 . . 1 . 1 . . Unknown Exits Taken 8 | 1 1 1 1 1 . . . . . . . . . . . . 1 . 1 1 . . . . . Scrap Searched 3 | . . . . 3 . . . . . . . . . . . . . . . . . . . . . Spaces Dug 159 | . . . . 1 17 9 6 12 24 9 9 11 4 . 21 2 14 1 . . 3 6 4 1 5 Terrain Destroyed 421 | . . . . 4 17 9 6 53 24 26 9 60 4 . 38 4 15 35 9 . 7 8 47 9 37 Melee 144 | . . . . . 17 9 6 12 24 9 9 11 4 . 21 2 14 1 . . 3 2 . . . Projectile 88 | . . . . 4 . . . . . . . 9 . . 1 2 . 18 8 . 3 6 16 9 12 AOE 184 | . . . . . . . . 41 . 17 . 40 . . 16 . . 14 . . . . 31 . 25 Terrain Rammed . | . . . . . . . . . . . . . . . . . . . . . . . . . . Walls Destroyed . | . . . . . . . . . . . . . . . . . . . . . . . . . . Machines Disabled . | . . . . . . . . . . . . . . . . . . . . . . . . . . Actions | -11 -10 -10 -10 -9 -8 -8 -8 -8 -7 -7 -7 -7 -6 -6 -6 -6 -5 -5 -5 -5 -5 -5 -4 -4 -4 --------- Run | Yrd Mat Min Exi Min Mat Gar Mat Gar Fac Gar Fac Gar Fac Was Fac Gar Fac Ext Cet Arc Hub Gar Fac Gar Fac Total 21468 | 132 343 229 233 532 692 1346 691 1924 1607 1822 834 1990 200 79 1267 1413 777 1383 203 40 94 1445 442 1387 363 Wait 2120 | 6 7 20 . 48 144 41 91 252 122 178 32 151 28 2 201 116 87 211 26 . 4 129 57 156 11 Move 17024 | 99 280 207 229 451 506 1069 576 1465 1347 1517 778 1514 164 69 966 1166 636 1006 136 40 67 1111 302 1039 284 Hop 10 | . . . . 9 . . 1 . . . . . . . . . . . . . . . . . . Pick Up 237 | 5 10 . 2 4 8 1 2 7 15 8 3 45 . 1 17 19 3 12 2 . 1 29 10 27 6 Fast Attach 55 | 8 4 . . . . . 1 1 3 1 . 10 1 . 3 6 2 . 1 . 4 2 2 6 . Attach 73 | . . . . . 4 . 1 5 4 2 . 9 1 . 6 . 3 1 5 . . 7 7 5 13 Detach 19 | 1 1 . . . . . 1 1 1 . . 1 . . . . . . 4 . . 1 1 7 . Swap 326 | 2 8 2 . 2 4 7 7 31 22 16 7 25 1 . 18 26 8 44 9 . 4 41 12 23 7 Drop 234 | . 11 . 2 4 5 1 2 6 21 17 5 34 . . 8 20 2 21 4 . 3 30 5 27 6 Fire 625 | 11 22 . . 14 4 21 3 33 31 7 . 55 1 7 22 36 16 68 16 . 8 82 46 86 36 Melee 411 | . . . . . 17 44 6 97 28 38 9 98 4 . 26 19 16 2 . . 3 4 . . . Ram . | . . . . . . . . . . . . . . . . . . . . . . . . . . Kick . | . . . . . . . . . . . . . . . . . . . . . . . . . . Crush 9 | . . . . . . . . . . . . . . . . . 4 5 . . . . . . . Escape Stasis 311 | . . . . . . 162 . 26 13 38 . 48 . . . 4 . 8 . . . 6 . 6 . Rewire 14 | . . . . . . . . . . . . . . . . 1 . 5 . . . 3 . 5 . Trap . | . . . . . . . . . . . . . . . . . . . . . . . . . . Miscellaneous . | . . . . . . . . . . . . . . . . . . . . . . . . . . Route ------- -11/Scrapyard -10/Materials (discovered 2 exits: [*Mat] / [*Min]) -10/Mines (discovered 2 exits: [*Mat] / *Exi) -10/Exiles -9/Mines -8/Materials (discovered 2 exits: Fac / Gar) -8/Garrison (discovered 3 exits: *Mat x3) -8/Materials (discovered 2 exits: *Fac / Gar) -8/Garrison (discovered 3 exits: *Fac x2 / [*Mat]) -7/Factory (discovered 5 exits: [*Fac x2] / [*Low] / Gar / Gar) -7/Garrison (discovered 4 exits: [*Fac x3] / *Fac) -7/Factory -7/Garrison (discovered 3 exits: [*Fac x3]) -6/Factory -6/Waste -6/Factory (discovered 2 exits: [*Low] / Gar) -6/Garrison (discovered 3 exits: *Fac x3) -5/Factory (discovered 2 exits: Fac / *Ext) -5/Extension (discovered 3 exits: *Fac x2 / *Cet) -5/Cetus -5/Archives -5/Hub_04(d) -5/Garrison (discovered 3 exits: *Fac x3) -4/Factory (discovered 2 exits: *Upp / Gar) -4/Garrison (discovered 2 exits: *Fac x2) -4/Factory (discovered 1 exit: Upp) History --------- Turn | Location | Event 9 | -11/Scrapyard | Discovered new exit (range 15) 226 | -11/Scrapyard | Entered Materials 313 | -10/Materials | Build established: Mutant 403 | -10/Materials | Discovered new exit (range 16) 512 | -10/Materials | Discovered new exit (range 13) 565 | -10/Materials | Entered Mines 570 | -10/Mines | Discovered new exit (range 5) 616 | -10/Mines | Learned location of Storage (-9) 663 | -10/Mines | Deemed a non-threat by the Exiles lab entrance 663 | -10/Mines | Discovered new exit (range 5) 665 | -10/Mines | Entered Exiles 675 | -10/Exiles | Met 8R-AWN 681 | -10/Exiles | Met EX-HEX 692 | -10/Exiles | Met EX-BIN 696 | -10/Exiles | Aligned with FarCom system 697 | -10/Exiles | Given EX-Vault access code 705 | -10/Exiles | Opened EX-Vault 708 | -10/Exiles | Found Cloak of Protection 716 | -10/Exiles | Warned to stay clear of 0b10 Research branches 727 | -10/Exiles | Met EX-DEC 749 | -10/Exiles | Discovered new exit (range 10) 752 | -10/Exiles | Left Exiles lab with Cloak of Protection 752 | -10/Exiles | Entered Mines 784 | -9/Mines | Learned location of Zion (-6) 857 | -9/Mines | Met a Derelict who couldn't figure out how to use a Trap Extractor 1010 | -9/Mines | Discovered new exit (range 9) 1018 | -9/Mines | Learned location of 1 exit from Materials 1034 | -9/Mines | Entered Materials 1034 | -8/Materials | Evolved 4 slots: Propulsion x2, Utility x2 1035 | -8/Materials | Identified exit to Factory 1143 | -8/Materials | Central database locked down 1405 | -8/Materials | Identified exit to Garrison 1407 | -8/Materials | Entered Garrison 1423 | -8/Garrison | Build established: Sprinter 1547 | -8/Garrison | Triggered checkpoint 1640 | -8/Garrison | Discovered new exit (range 8) 1779 | -8/Garrison | Triggered checkpoint 1822 | -8/Garrison | Discovered new exit (range 10) 1859 | -8/Garrison | Discovered new exit (range 12) 1971 | -8/Garrison | Triggered checkpoint 1985 | -8/Garrison | Triggered checkpoint 2006 | -8/Garrison | Discovered new exit (range 61) 2006 | -8/Garrison | Discovered new exit (range 39) 2006 | -8/Garrison | Discovered new exit (range 24) 2035 | -8/Garrison | Lost 3 allies 2059 | -8/Garrison | Installed Relay Interface Framework 2080 | -8/Garrison | Garrison Relay disabled 2101 | -8/Garrison | Entered Materials 2101 | -8/Materials | Accompanied by 6 allies 2328 | -8/Materials | Repaired Transmission Jammer 2349 | -8/Materials | Build established: Commander-Sprinter 2375 | -8/Materials | Discovered exit to Factory (range 5) 2404 | -8/Materials | Identified exit to Garrison 2408 | -8/Materials | Entered Garrison 2408 | -8/Garrison | Accompanied by 5 allies 2492 | -8/Garrison | Lost 5 allies 2494 | -8/Garrison | Triggered checkpoint 2643 | -8/Garrison | Discovered new exit (range 6) 2732 | -8/Garrison | Triggered checkpoint 2754 | -8/Garrison | Build established: Sprinter 2911 | -8/Garrison | Garrison Relay disabled 3146 | -8/Garrison | Triggered checkpoint 3173 | -8/Garrison | Garrison Relay disabled 3295 | -8/Garrison | Discovered exit to Factory (range 9) 3346 | -8/Garrison | Triggered checkpoint 3422 | -8/Garrison | Triggered checkpoint 3441 | -8/Garrison | Garrison Relay disabled 3515 | -8/Garrison | Discovered exit to Factory (range 15) 3528 | -8/Garrison | Expanded RIF knowledge: Signal Jamming 3562 | -8/Garrison | Build established: Scavenger-Mutant 3624 | -8/Garrison | Entered Factory 3624 | -7/Factory | Accompanied by 1 ally 3624 | -7/Factory | Evolved 2 slots: Utility x1, Weapon x1 3831 | -7/Factory | Discovered new exit (range 13) 4084 | -7/Factory | Discovered new exit (range 4) 4192 | -7/Factory | Identified exit to Garrison 4277 | -7/Factory | Discovered new exit (range 10) 4351 | -7/Factory | Build established: Mutant 4541 | -7/Factory | Identified exit to Garrison 4652 | -7/Factory | Entered Garrison 4676 | -7/Garrison | Triggered checkpoint 4785 | -7/Garrison | Warlord forces raided the area 4862 | -7/Garrison | Triggered checkpoint 4866 | -7/Garrison | Triggered checkpoint 4876 | -7/Garrison | Triggered checkpoint 4878 | -7/Garrison | Triggered checkpoint 4926 | -7/Garrison | Triggered checkpoint 4942 | -7/Garrison | Discovered new exit (range 12) 4951 | -7/Garrison | Expanded RIF knowledge: Alert ID Control 5236 | -7/Garrison | Discovered new exit (range 11) 5241 | -7/Garrison | Rescued a captive Derelict 5243 | -7/Garrison | Rescued a captive Derelict 5344 | -7/Garrison | Triggered checkpoint 5350 | -7/Garrison | Triggered checkpoint 5555 | -7/Garrison | Discovered new exit (range 3) 5584 | -7/Garrison | Build established: Scavenger-Mutant 5692 | -7/Garrison | Expanded RIF knowledge: Patrol Navigation 5704 | -7/Garrison | Triggered checkpoint 5893 | -7/Garrison | Discovered new exit (range 3) 5894 | -7/Garrison | Entered Factory 6246 | -7/Factory | Repaired Broken Adv. Weight Redist. System 6370 | -7/Factory | Identified exit to Garrison 6406 | -7/Factory | Entered Garrison 6510 | -7/Garrison | Triggered checkpoint 6599 | -7/Garrison | Lost 6 parts (4n2w) 6646 | -7/Garrison | Discovered new exit (range 15) 6693 | -7/Garrison | Rescued a captive Derelict 6804 | -7/Garrison | Garrison Relay disabled 6826 | -7/Garrison | Triggered checkpoint 6878 | -7/Garrison | Triggered checkpoint 6894 | -7/Garrison | Core integrity fell below 50% 6922 | -7/Garrison | Lost 3 parts (1p1n1w) 7020 | -7/Garrison | Discovered new exit (range 13) 7071 | -7/Garrison | Build established: Hacker-Mutant 7168 | -7/Garrison | Triggered checkpoint 7204 | -7/Garrison | Garrison Relay disabled 7235 | -7/Garrison | Expanded RIF knowledge: Autooverride 7274 | -7/Garrison | Triggered checkpoint 7408 | -7/Garrison | Lost 3 parts (1p1n1u) 7537 | -7/Garrison | System corruption reached 10% 7670 | -7/Garrison | Triggered checkpoint 7791 | -7/Garrison | Build established: Botlord-Mutant 8066 | -7/Garrison | Garrison Relay disabled 8104 | -7/Garrison | Discovered new exit (range 10) 8300 | -7/Garrison | Triggered checkpoint 8414 | -7/Garrison | Triggered checkpoint 8599 | -7/Garrison | Build established: Botlord-Skirmisher 8811 | -7/Garrison | Entered Factory 8811 | -6/Factory | Evolved 2 slots: Power x1, Weapon x1 9027 | -6/Factory | Sucked down chute 9027 | -6/Factory | Entered Waste 9033 | -6/Waste | Spotted C-40 Crusher 9035 | -6/Waste | Spotted C-40 Crusher 9042 | -6/Waste | EMP discharged 9047 | -6/Waste | Spotted C-40 Crusher 9066 | -6/Waste | Spotted C-40 Crusher 9068 | -6/Waste | Spotted C-40 Crusher 9068 | -6/Waste | Spotted C-40 Crusher 9097 | -6/Waste | Discovered new exit (range 13) 9113 | -6/Waste | Entered Factory 9383 | -6/Factory | Repaired Powered Hammer 9728 | -6/Factory | Discovered new exit (range 14) 9796 | -6/Factory | Watched by a mysterious "MATRIX" hacker 9983 | -6/Factory | Crushed by falling debris 10405 | -6/Factory | System corruption reached 10% 10610 | -6/Factory | Garrison activated, responded to threat 10663 | -6/Factory | Identified exit to Garrison 10663 | -6/Factory | Entered Garrison 10775 | -6/Garrison | Triggered checkpoint 10775 | -6/Garrison | Rescued a captive Derelict 10778 | -6/Garrison | Rescued a captive Derelict 10985 | -6/Garrison | Learned Factory security intel 11024 | -6/Garrison | Build established: Bothacker-Skirmisher 11185 | -6/Garrison | Triggered checkpoint 11187 | -6/Garrison | Triggered checkpoint 11223 | -6/Garrison | Triggered checkpoint 11373 | -6/Garrison | Discovered new exit (range 10) 11512 | -6/Garrison | Triggered checkpoint 11783 | -6/Garrison | Found Relay Coupler [Proto] 11844 | -6/Garrison | Discovered new exit (range 9) 11939 | -6/Garrison | Triggered checkpoint 12233 | -6/Garrison | Expanded RIF knowledge: Code Merge 12283 | -6/Garrison | Discovered new exit (range 12) 12291 | -6/Garrison | Triggered checkpoint 12462 | -6/Garrison | Spotted B-86 Titan 12485 | -6/Garrison | Assimilated Titan 5a with formatsys_high 12489 | -6/Garrison | Rewired B-86 Titan 12497 | -6/Garrison | Rewired B-86 Titan 12688 | -6/Garrison | Found Relay Coupler [Proto] 12807 | -6/Garrison | Garrison Relay disabled 12920 | -6/Garrison | Entered Factory 12920 | -5/Factory | Accompanied by 3 allies 12920 | -5/Factory | Evolved 2 slots: Utility x2 13220 | -5/Factory | First assault squad dispatched 13468 | -5/Factory | Discovered new exit (range 22) 13624 | -5/Factory | Lost 3 parts (2n1u) 14056 | -5/Factory | Build established: Tank 14424 | -5/Factory | Discovered new exit (range 15) 14462 | -5/Factory | Entered Extension 14462 | -5/Extension | Accompanied by 2 allies 14812 | -5/Extension | Rescued a captive Derelict 14854 | -5/Extension | Build established: Commander-Skirmisher 14899 | -5/Extension | Identified exit to Cetus 15013 | -5/Extension | Rescued a captive Derelict 15014 | -5/Extension | Rescued a captive Derelict 15528 | -5/Extension | Spotted B-75 Beast 15548 | -5/Extension | Spotted B-75 Beast 15567 | -5/Extension | Allies destroyed B-75 Beast 15589 | -5/Extension | Lost 3 allies 15628 | -5/Extension | Discovered new exit (range 3) 15834 | -5/Extension | Discovered new exit (range 16) 15857 | -5/Extension | Found Imp. Powered Armor 15938 | -5/Extension | Rescued a captive Derelict 15976 | -5/Extension | Rescued a captive Derelict 16045 | -5/Extension | Lost 3 allies 16138 | -5/Extension | Repaired Railgun 16276 | -5/Extension | Rescued a captive Derelict 16276 | -5/Extension | Rescued a captive Derelict 16515 | -5/Extension | Energy Cycler disabled 16515 | -5/Extension | Rescued a captive Derelict 16525 | -5/Extension | Rescued a captive Derelict 16734 | -5/Extension | Lost 3 allies 16834 | -5/Extension | Build established: Scavenger-Gunner 16951 | -5/Extension | Entered Cetus 16976 | -5/Cetus | Spotted Cetus Guard 16977 | -5/Cetus | Spotted Cetus Guard 16979 | -5/Cetus | Spotted Cetus Guard 16980 | -5/Cetus | Spotted Cetus Guard 17012 | -5/Cetus | Destroyed Cetus Guard 17018 | -5/Cetus | Destroyed Cetus Guard 17040 | -5/Cetus | Lost 3 parts (2n1u) 17294 | -5/Cetus | Build established: Scavenger-Tank 17299 | -5/Cetus | Discovered new exit (range 16) 17337 | -5/Cetus | Entered Archives 17376 | -5/Archives | Met Zhirov 17382 | -5/Archives | Reinforcements dispatched to Archives 17390 | -5/Archives | Unable to access archive contents 17395 | -5/Archives | Discovered new exit (range 15) 17427 | -5/Archives | Reinforcements dispatched to Archives 17433 | -5/Archives | Entered Hub_04(d) 17483 | -5/Hub_04(d) | Garrison activated, responded to threat 17641 | -5/Hub_04(d) | Identified exit to Garrison 17641 | -5/Hub_04(d) | Entered Garrison 17669 | -5/Garrison | Heavy support dispatched to Factory 17844 | -5/Garrison | H-XX Assembler disabled 18203 | -5/Garrison | Build established: Scavenger-Gunner 18229 | -5/Garrison | Triggered checkpoint 18326 | -5/Garrison | Garrison Relay disabled 18478 | -5/Garrison | Triggered checkpoint 18506 | -5/Garrison | Spotted B-75 Beast 18538 | -5/Garrison | Destroyed B-75 Beast 18552 | -5/Garrison | Lost 4 allies 18571 | -5/Garrison | Triggered checkpoint 18606 | -5/Garrison | Triggered checkpoint 18663 | -5/Garrison | Lost 3 parts (1u2w) 18672 | -5/Garrison | Destroyed 15 combat bots 18870 | -5/Garrison | Discovered new exit (range 11) 19201 | -5/Garrison | Discovered new exit (range 15) 19226 | -5/Garrison | Expanded RIF knowledge: Autooverride 19365 | -5/Garrison | Triggered checkpoint 19855 | -5/Garrison | Triggered checkpoint 19877 | -5/Garrison | Triggered checkpoint 19911 | -5/Garrison | Triggered checkpoint 20062 | -5/Garrison | Expanded RIF knowledge: Autoassimilate 20274 | -5/Garrison | Garrison Relay disabled 20384 | -5/Garrison | Discovered new exit (range 15) 20653 | -5/Garrison | Garrison Relay disabled 20748 | -5/Garrison | Entered Factory 20748 | -4/Factory | Evolved 2 slots: Utility x1, Weapon x1 20998 | -4/Factory | First assault squad dispatched 21122 | -4/Factory | Lost 3 parts (3w) 21193 | -4/Factory | Lost 3 parts (1n1u1w) 21312 | -4/Factory | Discovered new exit (range 4) 21677 | -4/Factory | Identified exit to Garrison 21677 | -4/Factory | Entered Garrison 21695 | -4/Garrison | Triggered checkpoint 21991 | -4/Garrison | Heavy support dispatched to Factory 22111 | -4/Garrison | Spotted B-86 Titan 22139 | -4/Garrison | Triggered checkpoint 22155 | -4/Garrison | Allies destroyed B-86 Titan 22185 | -4/Garrison | Triggered checkpoint 22205 | -4/Garrison | Triggered checkpoint 22207 | -4/Garrison | Triggered checkpoint 22435 | -4/Garrison | Triggered checkpoint 22450 | -4/Garrison | Heavy support dispatched to Factory 22552 | -4/Garrison | Garrison Relay disabled 22631 | -4/Garrison | Discovered new exit (range 10) 22874 | -4/Garrison | Build established: Bothacker-Gunner 23260 | -4/Garrison | Found Prototype Device 23260 | -4/Garrison | Identified Active Sensor Suite 23519 | -4/Garrison | Build established: Commander-Gunner 23631 | -4/Garrison | Expanded RIF knowledge: Robot Detection 23779 | -4/Garrison | Spotted B-86 Titan 23782 | -4/Garrison | Heavy support dispatched to Factory 23877 | -4/Garrison | Triggered checkpoint 23928 | -4/Garrison | Garrison Relay disabled 23965 | -4/Garrison | Rescued a captive Derelict 24166 | -4/Garrison | Lost 3 allies 24272 | -4/Garrison | Discovered new exit (range 16) 24287 | -4/Garrison | Triggered checkpoint 24348 | -4/Garrison | Garrison Relay disabled 24417 | -4/Garrison | Build established: Scavenger-Gunner 24533 | -4/Garrison | Entered Factory 24533 | -4/Factory | Accompanied by 5 allies 24783 | -4/Factory | First assault squad dispatched 24825 | -4/Factory | Unchained authorized (GL-D0S) 24865 | -4/Factory | Exiles provided nearest exit location to -4/Upper Caves 25082 | -4/Factory | P-70 Sage assimilated allied Sentinel 7d 25093 | -4/Factory | P-70 Sage assimilated allied Sentinel 7d 25204 | -4/Factory | Core integrity fell below 50% 25231 | -4/Factory | Released all parts (7) 25232 | -4/Factory | Core integrity fell below 20% 25236 | -4/Factory | Destroyed 11 combat bots 25255 | -4/Factory | Destroyed by D-63 Destroyer via exploding Fusion Modulator Last Messages --------------- 25228_ Imp. Medium Treads+ destroyed. 25229_ The unstable cave ceiling collapses. 25229_ K-01 Serf collects debris. 25229_ Imp. Medium Treads+ destroyed. 25230_ K-01 Serf collects debris. 25230_ HERF Cannon+ destroyed. 25231_ Released Visual Processing Unit. 25231_ Released Imp. Target Analyzer. 25231_ Released Armor Integrity Analyzer. 25231_ Released Huge Storage Unit. 25231_ Released Antimatter Reactor. 25231_ Released Lgt. Quantum Reactor. 25231_ Released Graphene Brace. 25232_ K-01 Serf collects debris. 25233_ The unstable cave ceiling collapses. 25236_ Dropped Imp. Coolant Injector. 25237_ Acquired Hcp. Storage Unit. 25238_ The unstable cave ceiling collapses. 25243_ #IR>4GSTFKELJEMFHZCS6OBOQ0T/U<%DN,#O